bitfinex/quotes_ETHUSD_20240621
["timestamp","ask_amount","ask_price","bid_price","bid_amount"]
[1718943355489,2.3267,3514.3,3513.0,0.9080244]
[1718943355688,0.49291141,3514.2,3513.0,0.9080244]
[1718943355867,0.49291141,3514.2,3513.1,2.4873]
[1718943356074,0.49291141,3514.2,3513.1,5.4873]
[1718943356268,0.49291141,3514.6,3513.2,0.63953244]
[1718943356523,0.49291141,3514.6,3513.3,0.05691174]
[1718943356754,0.49291141,3514.9,3513.4,2.4873]
[1718943357015,2.104,3515.5,3513.4,2.4873]
[1718943357016,0.49291141,3515.1,3513.5,2.45250028]
[1718943357232,0.49291141,3515.4,3513.5,2.45250028]
[1718943357370,0.49291141,3515.4,3513.5,5.45250028]
[1718943357568,0.49291141,3515.6,3513.7,2.4873]
[1718943357815,0.49291141,3515.6,3513.8,0.05689955]
[1718943358269,0.49291141,3515.6,3513.8,3.05689955]
[1718943358474,0.49272355,3515.6,3513.8,3.05689955]
[1718943359507,0.49272355,3515.6,3513.9,0.05689793]
[1718943359706,0.49272355,3515.6,3514.0,0.55441979]
[1718943359908,0.49272355,3515.6,3514.1,0.0568975]
[1718943360931,2.3267,3515.7,3514.1,0.0568975]
[1718943361087,0.4927063,3515.6,3514.3,2.4081]
[1718943361417,3.31532878,3516.2,3514.4,0.43360936]
[1718943361418,2.5967063,3516.1,3514.4,0.43360936]
[1718943361623,1.0427063,3516.0,3514.4,0.43360936]
[1718943361798,1.0427063,3516.0,3514.4,3.43360936]
[1718943362272,2.104,3515.7,3514.4,3.3767106]
[1718943362473,1.0427063,3515.6,3514.4,3.3767106]
[1718943363699,1.04273585,3515.6,3514.4,3.3767106]
[1718943364179,0.55,3515.6,3514.4,3.3767106]
[1718943364380,1.04273656,3515.6,3514.4,3.3767106]
[1718943364684,1.04273656,3515.6,3514.5,0.9080244]
[1718943364888,2.104,3515.3,3514.4,3.0]
[1718943365120,1.04276756,3515.2,3514.3,3.0]
[1718943366204,0.55,3515.2,3514.3,3.0]
[1718943366523,0.55,3515.3,3514.3,3.0]
[1718943366718,0.55,3515.3,3514.4,0.81804]
[1718943366920,1.04277407,3515.4,3514.4,0.81804]
[1718943370231,0.49273189,3515.4,3514.5,2.4559]
[1718943370412,0.49273189,3515.6,3514.5,2.4559]
[1718943370618,0.55,3515.5,3514.6,0.627394]
[1718943373038,1.04273501,3515.6,3514.6,0.627394]
[1718943373213,1.04273501,3515.6,3514.5,2.4559]
[1718943374062,0.55,3515.6,3514.5,2.4559]
[1718943374324,1.04273501,3515.7,3514.5,2.4559]
[1718943374627,1.04273501,3515.7,3514.6,0.627394]
[1718943375343,0.49273501,3515.7,3514.6,0.627394]
[1718943375617,2.4417,3516.0,3514.6,3.627394]
[1718943375824,0.49269807,3515.9,3514.7,0.45061494]
[1718943376077,2.4417,3516.0,3514.7,0.45061494]
[1718943376215,0.49269902,3515.9,3514.8,0.05689253]
[1718943376421,0.49269902,3515.9,3514.8,3.05689253]
[1718943376602,0.49269902,3515.9,3514.9,1.16310133]
[1718943376807,0.49269751,3515.9,3514.9,1.16310133]
[1718943378466,0.49269751,3515.9,3514.7,5.1804]
[1718943378467,2.104,3515.8,3514.7,5.1804]
[1718943378731,2.104,3515.0,3514.7,5.1804]
[1718943378934,2.104,3515.0,3514.1,7.5053]
[1718943378935,0.49278576,3514.9,3514.1,7.5053]
[1718943379693,0.99240434,3514.9,3514.1,5.1804]
[1718943380057,2.104,3514.6,3514.1,5.1804]
[1718943380529,1.04278576,3514.5,3514.1,5.1804]
[1718943381125,1.04278576,3514.5,3513.2,5.1804]
[1718943381293,2.3994,3514.3,3513.2,5.1804]
[1718943381514,0.55,3514.2,3513.2,5.1804]
[1718943381730,1.04295675,3514.2,3513.2,5.1804]
[1718943382825,1.04295675,3514.2,3513.3,3.0]
[1718943383791,1.04297084,3514.2,3513.3,3.0]
[1718943383992,1.44870578,3514.2,3513.3,3.0]
[1718943384450,3.55270578,3514.2,3513.3,3.0]
[1718943384753,0.49296444,3514.1,3513.2,5.1804]
[1718943384931,0.55,3514.0,3513.2,5.1804]
[1718943385127,0.41026994,3513.9,3513.2,5.1804]
[1718943385334,0.55,3513.8,3513.2,5.1804]
[1718943388308,2.654,3513.8,3513.2,5.1804]
[1718943388507,2.654,3513.8,3513.0,10.0]
[1718943388508,0.49301911,3513.7,3513.0,10.0]
[1718943388708,0.55,3513.6,3513.0,10.0]
[1718943390810,2.07073653,3513.5,3513.0,10.0]
[1718943391117,2.56376894,3513.4,3513.0,10.0]
[1718943391327,2.56376894,3513.3,3513.0,10.0]
[1718943391647,2.56376894,3513.2,3513.0,10.0]
[1718943391819,2.56376894,3513.1,3513.0,10.0]
[1718943392031,2.07073653,3513.1,3513.0,10.0]
[1718943392752,2.07073653,3513.6,3513.0,10.0]
[1718943392910,1.04302055,3513.5,3513.0,10.0]
[1718943393109,2.07073653,3513.4,3513.0,10.0]
[1718943393349,0.49302055,3513.3,3513.0,10.0]
[1718943393534,2.07073653,3513.2,3513.0,10.0]
[1718943393737,2.07066487,3513.1,3513.0,10.0]
[1718943394163,2.07066487,3513.4,3513.0,10.0]
[1718943394320,2.56368149,3513.3,3513.0,10.0]
[1718943394525,2.07066487,3513.2,3513.0,10.0]
[1718943394736,2.07066487,3513.1,3513.0,10.0]
[1718943394911,2.07066487,3513.4,3513.0,10.0]
[1718943395115,0.4930174,3513.3,3513.0,10.0]
[1718943395350,2.07066487,3513.2,3513.0,11.3]
[1718943395519,2.104,3514.4,3513.0,11.3]
[1718943395721,2.80327482,3514.2,3513.0,11.3]
[1718943396016,2.56333482,3514.1,3513.0,11.3]
[1718943396213,2.56333482,3514.0,3513.0,11.3]
[1718943396544,2.56333482,3513.9,3513.0,11.3]
[1718943396755,2.56334406,3513.8,3513.1,0.53915479]
[1718943397055,2.56334406,3513.7,3513.1,0.53915479]
[1718943397268,2.07039328,3513.6,3513.1,0.53915479]
[1718943397448,2.07039328,3513.5,3513.2,1.05391548]
[1718943397649,2.07039328,3513.4,3513.2,1.05391548]
[1718943397833,2.104,3514.4,3513.0,10.0]
[1718943397834,2.07039328,3513.3,3513.0,10.0]
[1718943398041,2.07039328,3513.2,3513.0,10.0]
[1718943398344,2.104,3514.4,3513.0,10.0]
[1718943398677,3.11334014,3514.2,3513.1,1.0]
[1718943398885,2.56334014,3514.1,3513.2,2.3563]
[1718943399087,2.56334014,3514.0,3513.2,2.3563]
[1718943399379,2.56334014,3513.9,3513.3,0.83915479]
[1718943399541,4.5031,3514.7,3513.3,0.83915479]
[1718943399740,3.11316899,3514.6,3513.3,3.83915479]
[1718943399945,2.56316899,3514.5,3513.3,3.83915479]
[1718943400169,0.55,3514.4,3513.4,0.61954548]
[1718943400451,2.07024305,3514.3,3513.4,0.61954548]
[1718943400655,2.56315806,3514.2,3513.4,0.61954548]
[1718943400893,2.56315201,3514.1,3513.5,0.38045452]
[1718943401043,2.56315201,3514.0,3513.5,0.38045452]
[1718943401242,2.56315201,3513.9,3513.5,0.38045452]
[1718943401475,2.56315201,3513.8,3513.3,3.0]
[1718943401641,2.07024305,3513.7,3513.2,2.3563]
[1718943401971,2.07024305,3513.6,3513.2,2.3563]
[1718943402135,0.55,3514.6,3513.2,2.3563]
[1718943402339,2.07026998,3514.5,3513.2,2.3563]
[1718943402540,1.04292169,3514.4,3513.2,2.3563]
[1718943402740,1.04292031,3514.4,3513.2,2.3563]
[1718943402974,0.55,3514.4,3513.2,2.3563]
[1718943403175,0.55,3514.5,3513.2,2.3563]
[1718943406586,1.04291901,3514.6,3513.2,2.3563]
[1718943407392,0.49291901,3514.5,3513.2,2.3563]
[1718943407573,0.55,3514.4,3513.2,2.3563]
[1718943408081,1.04291901,3514.5,3513.2,2.3563]
[1718943408286,0.55,3514.5,3513.2,2.3563]
[1718943408457,0.49291901,3514.4,3513.2,2.3563]
[1718943408653,0.49291901,3514.3,3513.2,2.3563]
[1718943408853,0.49291809,3514.2,3513.2,2.3563]
[1718943409055,0.49291809,3514.4,3513.2,2.3563]
[1718943409386,0.49291809,3514.3,3513.2,2.3563]
[1718943409558,0.49291809,3514.2,3513.2,2.3563]
[1718943409754,0.49291809,3514.1,3513.2,2.3563]
[1718943409953,0.49291809,3514.4,3513.2,2.3563]
[1718943410148,0.49291809,3514.3,3513.2,2.3563]
[1718943410466,0.49291809,3514.2,3513.2,2.3563]
[1718943410673,0.55,3514.5,3513.1,3.0]
[1718943410674,2.93781809,3514.1,3513.1,3.0]
[1718943410868,0.49291809,3514.0,3513.1,3.0]
[1718943411057,3.14691809,3513.9,3513.0,15.1804]
[1718943411293,2.93781809,3513.8,3513.0,15.1804]
[1718943411466,1.9023999,3513.7,3513.0,15.1804]
[1718943411666,0.49291809,3513.6,3513.0,15.1804]
[1718943411889,0.55,3513.5,3513.0,15.1804]
[1718943412197,1.40948181,3513.7,3513.0,15.1804]
[1718943412373,0.49301124,3513.4,3513.0,15.1804]
[1718943412577,0.49301124,3513.3,3513.0,15.1804]
[1718943412784,1.08884942,3513.6,3513.0,15.1804]
[1718943413002,1.04303052,3513.5,3513.0,15.1804]
[1718943413172,0.49303052,3513.4,3513.0,15.1804]
[1718943414912,0.55,3513.5,3513.0,10.0]
[1718943415195,0.49303061,3513.4,3513.0,10.0]
[1718943417861,0.55,3513.5,3513.0,10.0]
[1718943418098,0.49303143,3513.4,3513.0,10.0]
[1718943420800,0.65691971,3513.4,3513.0,10.0]
[1718943421493,0.49303275,3513.4,3513.0,10.0]
[1718943423275,2.654,3513.5,3513.0,10.0]
[1718943423479,0.49303421,3513.4,3513.0,10.0]
[1718943423705,2.654,3513.5,3513.0,10.0]
[1718943423914,0.49303433,3513.4,3513.0,10.0]
[1718943424611,0.49303432,3513.4,3513.0,10.0]
[1718943425979,3.35473432,3513.3,3513.0,10.0]
[1718943426307,2.8617,3513.3,3513.0,10.0]
[1718943426501,0.49309792,3513.2,3513.0,10.0]
[1718943426817,1.04309792,3513.1,3513.0,10.0]
[1718943427323,0.55,3513.1,3513.0,10.0]
[1718943427521,1.04309792,3513.1,3513.0,10.0]
[1718943427722,0.55,3513.1,3513.0,10.0]
[1718943429801,0.217,3513.1,3513.0,10.0]
[1718943430100,0.49309294,3513.2,3513.0,10.0]
[1718943432152,0.49309294,3513.4,3513.0,11.0]
[1718943432307,2.4574,3513.8,3513.0,11.0]
[1718943432502,0.4930414,3513.7,3513.0,11.0]
[1718943432903,0.49303313,3513.6,3513.0,11.0]
[1718943433208,0.49303313,3513.7,3513.0,10.0]
[1718943433414,1.04303313,3513.6,3513.0,10.0]
[1718943433613,0.55,3513.6,3513.0,10.0]
[1718943433931,1.04303392,3513.6,3513.0,10.0]
[1718943434143,0.55,3513.6,3513.0,10.0]
[1718943434430,0.49303392,3513.5,3513.0,10.0]
[1718943435315,2.94707731,3513.5,3513.0,10.0]
[1718943435521,0.49303689,3513.4,3513.0,10.0]
[1718943436905,0.49303689,3513.3,3513.0,10.0]
[1718943437106,0.49303689,3513.4,3513.0,10.0]
[1718943437320,0.49303689,3513.3,3513.0,10.0]
[1718943437533,0.49303689,3513.4,3513.0,10.0]
[1718943437815,0.49303689,3513.3,3513.0,10.0]
[1718943438020,0.49303689,3513.4,3513.0,10.0]
[1718943438218,0.49303689,3513.3,3513.0,10.0]
[1718943438421,0.49303689,3513.2,3513.0,10.0]
[1718943438620,0.49303698,3513.4,3513.0,10.0]
[1718943438836,0.49303698,3513.3,3513.0,10.0]
[1718943439015,0.49303698,3513.2,3513.0,10.0]
[1718943439211,2.104,3513.1,3513.0,10.0]
[1718943439418,1.92103698,3513.1,3513.0,10.0]
[1718943441522,2.656,3513.1,3513.0,10.0]
[1718943441722,3.14914217,3513.1,3513.0,10.0]
[1718943441919,2.656,3513.1,3513.0,10.0]
[1718943442122,3.68780744,3513.1,3513.0,10.0]
[1718943442857,3.68779712,3513.1,3513.0,10.0]
[1718943444626,3.68782229,3513.1,3513.0,10.0]
[1718943445835,3.6878141,3513.1,3513.0,10.0]
[1718943447757,6.1976708,3513.1,3513.0,8.69821056]
[1718943448052,6.69081502,3513.1,3513.0,8.69821056]
[1718943449471,6.69081502,3513.1,3513.0,8.60981056]
[1718943450746,6.69086119,3513.1,3513.0,8.60981056]
[1718943451973,6.69086119,3513.1,3513.0,8.29341056]
[1718943453896,6.1976708,3513.1,3513.0,8.29341056]
[1718943454057,6.69085973,3513.1,3513.0,8.29341056]
[1718943454258,6.1976708,3513.1,3513.0,8.29341056]
[1718943454451,4.58485853,3513.1,3513.0,8.29341056]
[1718943454649,6.69085853,3513.1,3513.0,8.29341056]
[1718943455188,6.69084178,3513.1,3513.0,8.29341056]
[1718943456885,6.1976708,3513.1,3513.0,8.29341056]
[1718943457088,6.69084288,3513.1,3513.0,8.29341056]
[1718943459138,6.69084258,3513.1,3513.0,8.29341056]
[1718943459973,6.1976708,3513.1,3513.0,8.29341056]
[1718943460277,0.49317495,3513.1,3513.0,8.29341056]
[1718943460653,0.49317495,3513.3,3513.0,8.29341056]
[1718943461463,0.877,3513.1,3513.0,8.29341056]
[1718943462267,0.49317495,3513.5,3513.0,8.29341056]
[1718943462463,8.2978,3513.9,3513.0,8.29341056]
[1718943462464,1.32295495,3513.8,3513.0,8.29341056]
[1718943462691,0.877,3513.1,3513.0,8.29341056]
[1718943462998,1.04317495,3513.7,3513.0,8.29341056]
[1718943462999,0.55,3513.7,3513.0,8.29341056]
[1718943463153,2.56377661,3513.6,3513.0,8.29341056]
[1718943463499,2.56377661,3513.5,3513.1,2.4337]
[1718943463651,2.56377661,3513.4,3513.1,2.4337]
[1718943463852,2.56377661,3513.3,3513.1,2.4337]
[1718943464056,2.56377661,3513.2,3513.1,2.4337]
[1718943464363,2.56377661,3513.2,3513.1,3.21790373]
[1718943464871,2.07074265,3513.2,3513.1,3.21790373]
[1718943465078,2.56320528,3513.8,3513.2,2.3086]
[1718943465274,2.56321966,3513.7,3513.2,2.3086]
[1718943465475,2.56321966,3513.6,3513.3,1.05495106]
[1718943465666,2.56321966,3513.5,3513.3,1.05495106]
[1718943465871,2.105,3514.4,3513.4,0.33635511]
[1718943466068,2.07027807,3514.3,3513.4,0.33635511]
[1718943466295,2.105,3514.4,3513.2,7.489]
[1718943466498,4.89769321,3514.3,3513.2,7.489]
[1718943466720,2.56330432,3514.2,3513.2,7.489]
[1718943466922,2.56330432,3514.1,3513.2,7.489]
[1718943467089,2.105,3514.4,3513.2,7.489]
[1718943467277,3.11327537,3514.3,3513.2,7.489]
[1718943467475,2.56327537,3514.2,3513.2,7.489]
[1718943467707,2.56327537,3514.1,3513.2,7.489]
[1718943467915,2.56327537,3514.0,3513.2,7.489]
[1718943468071,2.56327537,3513.9,3513.2,7.489]
[1718943468271,2.56327537,3513.8,3513.2,7.489]
[1718943468576,2.56327537,3513.7,3513.2,7.489]
[1718943468780,2.56327537,3513.6,3513.2,7.489]
[1718943468985,2.0703378,3513.5,3513.2,2.3086]
[1718943469202,1.14395694,3514.3,3513.2,2.3086]
[1718943469203,2.5632991,3513.4,3513.2,2.3086]
[1718943469501,2.56329929,3513.3,3513.2,2.3086]
[1718943472006,2.4996,3514.1,3513.2,2.3086]
[1718943472207,0.49299304,3513.3,3513.2,2.3086]
[1718943472508,2.56356384,3513.9,3513.2,2.3086]
[1718943472676,2.56356384,3513.8,3513.2,2.3086]
[1718943472873,2.56356384,3513.7,3513.2,2.3086]
[1718943473098,2.56356384,3513.6,3513.2,2.3086]
[1718943473406,2.56356384,3513.5,3513.2,2.3086]
[1718943473611,2.105,3514.0,3513.2,2.3086]
[1718943473612,2.56356384,3513.4,3513.2,2.3086]
[1718943473784,2.56356384,3513.3,3513.2,2.3086]
[1718943475120,2.0705708,3513.3,3513.2,2.3086]
[1718943475414,2.56356837,3513.9,3513.2,2.3086]
[1718943475715,2.56356837,3513.8,3513.2,2.3086]
[1718943475887,2.56356837,3513.7,3513.2,2.3086]
[1718943476087,2.56356837,3513.6,3513.2,2.3086]
[1718943476271,2.56356837,3513.5,3513.2,2.3086]
[1718943476474,2.56356837,3513.4,3513.2,2.3086]
[1718943476675,2.56356837,3513.3,3513.2,2.3086]
[1718943478102,2.105,3514.0,3513.2,2.3086]
[1718943478306,2.56350844,3513.9,3513.2,2.3086]
[1718943478520,2.46238526,3514.0,3513.2,2.3086]
[1718943478778,2.56350954,3513.9,3513.2,2.3086]
[1718943478996,2.56350954,3513.8,3513.2,2.3086]
[1718943479195,2.56350984,3513.7,3513.2,2.3086]
[1718943479429,2.56350984,3513.6,3513.2,2.3086]
[1718943479743,2.56350984,3513.5,3513.2,2.3086]
[1718943479900,2.56350984,3513.4,3513.2,2.3086]
[1718943480107,2.56350984,3513.3,3513.2,2.3086]
[1718943481044,2.0705306,3513.3,3513.2,2.3086]
[1718943481336,0.49298347,3513.3,3513.2,2.3086]
[1718943481555,2.56351407,3513.7,3513.2,2.3086]
[1718943481759,2.56351407,3513.6,3513.2,2.3086]
[1718943481906,2.56351407,3513.5,3513.2,2.3086]
[1718943482100,0.55,3514.3,3513.2,2.3086]
[1718943482101,2.56346046,3513.4,3513.2,3.36880106]
[1718943482325,0.55,3514.3,3513.2,3.36880106]
[1718943482535,2.07030798,3514.2,3513.2,3.36880106]
[1718943482732,2.56323845,3514.1,3513.2,3.36880106]
[1718943482932,2.56323845,3514.0,3513.2,3.36880106]
[1718943483138,0.55,3514.4,3513.2,3.36880106]
[1718943483139,2.56323845,3513.9,3513.3,0.77895373]
[1718943483340,2.07030798,3513.8,3513.3,0.77895373]
[1718943483538,2.070348,3513.7,3513.3,0.83578772]
[1718943483711,0.49294,3513.7,3513.3,0.05683399]
[1718943483912,0.51466,3514.3,3513.3,0.05683399]
[1718943484753,1.04294,3514.4,3513.4,2.3486]
[1718943484754,0.49294,3514.4,3513.4,2.3486]
[1718943484960,2.4919,3514.9,3513.5,0.05691596]
[1718943484961,0.49294,3514.8,3513.5,0.05691596]
[1718943485249,0.55,3514.7,3513.5,0.05691596]
[1718943485537,0.59263081,3514.6,3513.5,0.05691596]
[1718943485735,0.55,3514.5,3513.5,0.05691596]
[1718943486152,1.04294,3514.5,3513.5,0.05691596]
[1718943486450,0.55,3514.5,3513.5,0.05691596]
[1718943486654,1.04291234,3514.5,3513.5,0.05691596]
[1718943486950,0.71355432,3514.5,3513.5,0.05691596]
[1718943487447,0.877,3514.0,3513.5,0.05691596]
[1718943487626,0.544,3514.0,3513.5,0.05691596]
[1718943491017,1.03692007,3514.0,3513.5,0.05691596]
[1718943491226,0.49292007,3513.9,3513.5,0.05691596]
[1718943492031,0.544,3514.0,3513.5,0.05691596]
[1718943492231,0.49292007,3513.9,3513.5,0.05691596]
[1718943492434,0.544,3514.0,3513.5,0.05691596]
[1718943492618,0.49291672,3513.9,3513.5,0.05691596]
[1718943495626,0.49291063,3513.9,3513.5,0.05691596]
[1718943495826,0.49291063,3513.9,3513.5,1.11550756]
[1718943498548,0.544,3514.0,3513.5,1.11550756]
[1718943499333,1.03691469,3514.0,3513.5,1.11550756]
[1718943499535,0.544,3514.0,3513.5,1.11550756]
[1718943500441,1.03691469,3514.0,3513.5,1.11550756]
[1718943500635,0.544,3514.0,3513.5,1.11550756]
[1718943501355,0.49291469,3513.9,3513.5,1.11550756]
[1718943501807,0.544,3514.0,3513.5,1.11550756]
[1718943501968,0.49291407,3513.9,3513.5,1.11550756]
[1718943502170,0.544,3514.0,3513.5,1.11550756]
[1718943502361,0.49291404,3513.9,3513.5,1.11550756]
[1718943502962,0.55,3514.5,3513.5,1.11550756]
[1718943503168,0.877,3514.0,3513.5,0.05691596]
[1718943503347,0.49291512,3513.9,3513.5,0.05691596]
[1718943504859,0.877,3514.0,3513.5,0.05691596]
[1718943505059,0.49291413,3513.9,3513.5,0.05691596]
[1718943505268,0.49291412,3513.8,3513.5,0.05691596]
[1718943505478,0.49291412,3513.9,3513.5,0.05691596]
[1718943505682,0.49291412,3513.8,3513.5,0.05691596]
[1718943505859,0.49291412,3513.9,3513.5,0.05691596]
[1718943506059,0.49291412,3513.8,3513.5,0.05691596]
[1718943506267,0.49291412,3513.9,3513.5,0.05691596]
[1718943506475,0.49291412,3513.8,3513.5,0.05691596]
[1718943506773,0.877,3514.1,3513.5,1.11550756]
[1718943506959,0.877,3514.1,3513.5,0.05691596]
[1718943506960,0.49291412,3514.0,3513.5,0.05691596]
[1718943507159,0.49291412,3513.9,3513.5,0.05691596]
[1718943507366,0.49291412,3513.8,3513.5,0.05691596]
[1718943507648,0.49291412,3514.0,3513.5,0.59746756]
[1718943507968,2.4919,3514.9,3513.7,2.3262]
[1718943508170,0.877,3514.6,3513.8,0.05690726]
[1718943508388,0.49286731,3514.5,3513.8,0.05690726]
[1718943508677,0.49286731,3514.4,3513.9,0.62601073]
[1718943508850,2.356,3515.1,3514.1,2.4356]
[1718943508851,0.49286731,3514.3,3514.1,2.4356]
[1718943509055,0.877,3514.9,3514.2,0.36875619]
[1718943509251,0.49286731,3514.8,3514.2,0.36875619]
[1718943509474,0.877,3514.9,3514.2,0.36875619]
[1718943509475,0.49286731,3514.7,3514.2,0.36875619]
[1718943509676,0.49286731,3514.6,3514.2,0.36875619]
[1718943509981,0.49286731,3514.8,3514.3,0.33733836]
[1718943510205,0.49286731,3514.7,3514.4,2.2958]
[1718943510352,0.877,3515.2,3514.5,0.0568995]
[1718943510353,0.49286731,3515.1,3514.5,0.0568995]
[1718943510555,0.49286731,3515.0,3514.5,0.0568995]
[1718943510996,0.49278304,3514.9,3514.5,0.0568995]
[1718943511291,0.49278304,3515.1,3514.5,0.6513982]
[1718943511568,0.49278304,3515.0,3514.5,0.6513982]
[1718943511882,0.49278304,3515.3,3514.6,2.3864]
[1718943512078,0.49278304,3515.3,3514.7,0.29808987]
[1718943512273,0.877,3515.3,3514.7,0.29808987]
[1718943512989,0.49278304,3515.5,3514.7,0.29808987]
[1718943513192,0.49278304,3515.8,3514.7,0.29808987]
[1718943513392,0.877,3515.3,3514.7,0.29808987]
[1718943514532,0.49274739,3515.8,3514.7,0.29808987]
[1718943514737,0.877,3515.3,3514.7,0.29808987]
[1718943515317,0.4927443,3515.7,3514.8,0.78648899]
[1718943515519,0.877,3515.4,3514.8,0.78648899]
[1718943518235,0.49272511,3515.8,3514.4,5.1804]
[1718943518236,0.877,3514.9,3514.4,5.1804]
[1718943518415,0.49272511,3515.8,3514.2,2.67625183]
[1718943518416,0.877,3514.5,3514.2,2.3644]
[1718943518603,0.877,3514.7,3514.2,2.3644]
[1718943518806,0.877,3514.9,3514.2,2.3644]
[1718943520637,0.877,3514.5,3514.0,5.1804]
[1718943522153,0.877,3514.3,3514.0,5.1804]
[1718943522440,0.877,3514.2,3513.6,2.314]
[1718943523411,0.877,3514.2,3513.6,5.314]
[1718943523631,0.877,3514.3,3513.6,5.314]
[1718943524954,0.877,3514.1,3513.6,5.314]
[1718943526451,0.877,3514.3,3513.6,5.314]
[1718943527120,0.49287847,3514.8,3513.6,5.314]
[1718943527439,0.49287847,3514.8,3513.6,6.191]
[1718943527440,0.877,3514.6,3513.6,6.191]
[1718943527812,0.49287847,3514.8,3513.6,6.191]
[1718943528042,0.877,3514.6,3513.7,1.13714]
[1718943528244,0.877,3514.6,3513.7,4.13714]
[1718943529445,0.49283657,3514.8,3513.8,2.3722]
[1718943529633,0.877,3514.9,3513.9,2.3722]
[1718943529838,0.877,3514.9,3514.0,3.95121479]
[1718943530041,0.877,3514.9,3514.1,3.0]
[1718943530546,0.877,3514.7,3514.1,3.0]
[1718943531312,0.49283657,3515.2,3514.1,3.0]
[1718943531513,0.877,3514.7,3514.1,3.0]
[1718943531727,0.27472366,3515.1,3514.0,5.1804]
[1718943531728,0.877,3514.3,3514.0,5.1804]
[1718943531931,0.877,3514.3,3513.8,2.4128]
[1718943532162,0.49287177,3514.7,3513.8,2.4128]
[1718943532364,0.877,3514.4,3513.8,2.4128]
[1718943532533,0.877,3514.4,3513.6,3.0]
[1718943532870,0.877,3514.2,3513.6,3.81804]
[1718943533443,0.49287177,3514.5,3513.6,0.81804]
[1718943533757,0.49287177,3514.4,3513.6,0.81804]
[1718943533952,0.49287177,3514.6,3513.6,0.81804]
[1718943534173,0.49287177,3514.5,3513.6,0.81804]
[1718943534371,0.49287177,3514.4,3513.6,0.81804]
[1718943534673,0.49287177,3514.6,3513.6,0.81804]
[1718943534868,2.55716,3514.7,3513.6,0.81804]
[1718943535039,0.49290542,3514.6,3513.6,0.81804]
[1718943535381,0.49290542,3514.5,3513.6,0.81804]
[1718943535565,0.49290542,3514.6,3513.6,0.81804]
[1718943535772,0.49290542,3514.5,3513.6,0.81804]
[1718943535936,0.49290542,3514.6,3513.6,0.81804]
[1718943536138,0.49290542,3514.5,3513.6,0.81804]
[1718943536359,0.49290542,3514.4,3513.6,0.81804]
[1718943536557,0.49290542,3514.6,3513.6,0.81804]
[1718943536767,0.49290542,3514.5,3513.6,0.81804]
[1718943537051,0.49290542,3514.4,3513.6,0.81804]
[1718943537273,0.49290542,3514.6,3513.6,0.81804]
[1718943537463,0.49290542,3514.5,3513.6,0.81804]
[1718943537657,0.49290542,3514.4,3513.7,0.827274]
[1718943537862,2.55716,3514.7,3513.7,0.827274]
[1718943538065,0.49291372,3514.6,3513.7,0.827274]
[1718943538279,2.55716,3514.7,3513.7,0.827274]
[1718943538455,0.49291348,3514.5,3513.7,0.827274]
[1718943538659,0.49291348,3514.6,3513.7,0.827274]
[1718943538859,0.49291348,3514.5,3513.7,0.827274]
[1718943539077,0.49291327,3514.6,3513.7,0.827274]
[1718943539250,0.49291327,3514.5,3513.7,0.827274]
[1718943539451,0.49291327,3514.6,3513.7,0.827274]
[1718943539674,0.49291327,3514.5,3513.7,0.827274]
[1718943539876,0.49291327,3514.6,3513.7,0.827274]
[1718943540075,0.49291327,3514.5,3513.7,0.827274]
[1718943540569,0.49291327,3514.5,3513.5,5.1804]
[1718943540570,2.4755,3514.4,3513.5,5.1804]
[1718943540791,3.14695478,3514.3,3513.5,5.1804]
[1718943541086,0.49295478,3514.2,3513.5,5.1804]
[1718943542504,0.49295478,3514.2,3513.6,0.51804]
[1718943543190,2.4748,3514.9,3513.7,2.4561]
[1718943543375,2.104,3515.5,3513.9,2.4561]
[1718943543376,0.49286085,3514.2,3513.9,2.4561]
[1718943543573,2.4748,3515.4,3513.9,2.4561]
[1718943543574,0.49286085,3515.3,3513.9,2.4561]
[1718943543898,0.49286085,3515.2,3513.9,2.4561]
[1718943544188,0.49286085,3515.1,3514.0,0.3571554]
[1718943544405,0.49286085,3515.3,3514.0,0.3571554]
[1718943544574,0.49286085,3515.3,3514.2,2.4233]
[1718943546239,3.23268,3515.4,3514.3,0.04421512]
[1718943546503,0.49278129,3515.3,3514.4,2.4713]
[1718943546671,0.49278129,3515.9,3514.6,2.4713]
[1718943546871,0.49278129,3515.8,3514.7,0.04433414]
[1718943547084,0.49278129,3515.7,3514.7,3.04433414]
[1718943547277,0.49278129,3515.6,3514.8,0.04433287]
[1718943547503,0.49278129,3515.9,3514.8,0.04433287]
[1718943547709,0.49278129,3515.8,3514.8,0.04433287]
[1718943547924,0.49278129,3515.7,3514.8,0.04433287]
[1718943548215,0.74052129,3515.9,3514.8,0.04433287]
[1718943548417,1.04278129,3515.8,3514.8,0.04433287]
[1718943548975,0.55,3515.8,3514.8,0.04433287]
[1718943549206,0.37679213,3515.7,3514.8,0.04433287]
[1718943549415,0.37679213,3515.7,3514.7,3.0]
[1718943549416,2.48079213,3515.7,3514.7,3.0]
[1718943550104,0.492716,3515.6,3514.7,3.0]
[1718943550283,0.37679213,3515.7,3514.7,3.0]
[1718943550489,0.37712483,3515.6,3514.7,3.0]
[1718943550793,2.3822,3515.5,3514.7,3.0]
[1718943550990,0.49271613,3515.4,3514.7,3.0]
[1718943551713,1.04271613,3515.8,3514.7,3.0]
[1718943551898,1.63188174,3515.8,3514.7,4.06517]
[1718943552103,1.13916561,3515.8,3514.7,3.0]
[1718943552404,1.63190521,3515.8,3514.7,3.0]
[1718943553896,0.4927396,3515.8,3514.8,2.379]
[1718943554075,0.4927396,3516.2,3514.9,0.05689093]
[1718943554279,0.4927396,3516.2,3515.0,2.379]
[1718943554705,0.1202878,3516.3,3515.0,2.379]
[1718943554895,0.1202878,3516.3,3515.1,0.2379]
[1718943555714,0.1202878,3516.3,3515.2,2.3015]
[1718943563597,0.55,3516.2,3515.2,5.3015]
[1718943565828,2.104,3516.0,3515.1,5.1804]